[Event "Titled Tuesday Blitz June 28 Early 2022"]
[White "Mendez Fortes, Eduardo Jesus"]
[Black "Nunez V, Gustavo Eduardo"]
[WhiteFideId "3502376"]
[BlackFideId "4403690"]
[WhiteElo "2321"]
[BlackElo "2228"]
[Result "1-0"]
[Round "04"]
[TimeControl "180+1"]
[Date "2022.06.28"]
[WhiteClock "0:01:44"]
[BlackClock "0:00:19"]

1. e4 {[%clk 0:03:00]}  c5 {[%clk 0:03:00]} 2. Nf3 {[%clk 0:03:01]}  Nc6 {[%clk 0:03:00]} 3. d4 {[%clk 0:03:01]}  cxd4 {[%clk 0:03:00]} 4. Nxd4 {[%clk 0:03:02]}  e5 {[%clk 0:03:01]} 5. Nb5 {[%clk 0:03:01]}  a6 {[%clk 0:03:01]} 6. Nd6+ {[%clk 0:03:00]}  Bxd6 {[%clk 0:03:02]} 7. Qxd6 {[%clk 0:03:01]}  Qf6 {[%clk 0:03:02]} 8. Qd1 {[%clk 0:03:01]}  Qg6 {[%clk 0:03:02]} 9. Nc3 {[%clk 0:03:01]}  Nge7 {[%clk 0:03:03]} 10. h4 {[%clk 0:03:01]}  h5 {[%clk 0:03:02]} 11. Bg5 {[%clk 0:03:01]}  d5 {[%clk 0:03:00]} 12. Bxe7 {[%clk 0:02:59]}  d4 {[%clk 0:03:00]} 13. Ba3 {[%clk 0:02:30]}  dxc3 {[%clk 0:02:58]} 14. bxc3 {[%clk 0:02:31]}  Qxe4+ {[%clk 0:02:57]} 15. Be2 {[%clk 0:02:31]}  Bf5 {[%clk 0:02:38]} 16. Rb1 {[%clk 0:02:20]}  Rd8 {[%clk 0:02:37]} 17. Qc1 {[%clk 0:02:17]}  Qxg2 {[%clk 0:02:24]} 18. Rf1 {[%clk 0:02:16]}  Rd7 {[%clk 0:02:00]} 19. Qe3 {[%clk 0:02:13]}  Bxc2 {[%clk 0:01:53]} 20. Bf3 {[%clk 0:02:12]}  Qh2 {[%clk 0:01:33]} 21. Rxb7 {[%clk 0:01:51]}  Rxb7 {[%clk 0:01:17]} 22. Bxc6+ {[%clk 0:01:51]}  Rd7 {[%clk 0:01:17]} 23. Qc5 {[%clk 0:01:47]}  Kd8 {[%clk 0:00:59]} 24. Qb6+ {[%clk 0:01:46]}  Kc8 {[%clk 0:00:38]} 25. Qxa6+ {[%clk 0:01:47]}  Kd8 {[%clk 0:00:20]} 26. Qa8+ {[%clk 0:01:43]}  Kc7 {[%clk 0:00:19]} 27. Qb7+ {[%clk 0:01:43]}  Kd8 {[%clk 0:00:19]} 28. Qxd7# {[%clk 0:01:44]} 1-0


[Site "https://www.chess.com"]

[Event "Titled Tuesday Blitz June 28 Early 2022"]
[White "Mickiewicz, Piotr"]
[Black "Antonio, Jorge Carlos"]
[WhiteFideId "1114891"]
[BlackFideId "113190"]
[WhiteElo "2209"]
[BlackElo "2247"]
[Result "1-0"]
[Round "04"]
[TimeControl "180+1"]
[Date "2022.06.28"]
[WhiteClock "0:00:43"]
[BlackClock "0:00:02"]

1. e4 {[%clk 0:03:00]}  c5 {[%clk 0:02:56]} 2. Nf3 {[%clk 0:02:59]}  e6 {[%clk 0:02:54]} 3. d4 {[%clk 0:03:00]}  cxd4 {[%clk 0:02:53]} 4. Nxd4 {[%clk 0:03:01]}  Nc6 {[%clk 0:02:52]} 5. Nc3 {[%clk 0:03:01]}  a6 {[%clk 0:02:49]} 6. g3 {[%clk 0:03:01]}  Bb4 {[%clk 0:02:48]} 7. Bg2 {[%clk 0:03:01]}  Nge7 {[%clk 0:02:44]} 8. O-O {[%clk 0:03:00]}  O-O {[%clk 0:02:40]} 9. Nde2 {[%clk 0:02:57]}  Bc5 {[%clk 0:02:37]} 10. Kh1 {[%clk 0:02:56]}  Qc7 {[%clk 0:02:32]} 11. f4 {[%clk 0:02:55]}  f5 {[%clk 0:02:26]} 12. e5 {[%clk 0:02:50]}  b5 {[%clk 0:02:21]} 13. Qd3 {[%clk 0:02:18]}  b4 {[%clk 0:02:21]} 14. Na4 {[%clk 0:02:16]}  Ba7 {[%clk 0:02:17]} 15. Be3 {[%clk 0:02:15]}  Bb7 {[%clk 0:02:14]} 16. Rfd1 {[%clk 0:01:59]}  Rfd8 {[%clk 0:01:47]} 17. c4 {[%clk 0:01:57]}  bxc3 {[%clk 0:01:42]} 18. bxc3 {[%clk 0:01:54]}  Nxe5 {[%clk 0:01:34]} 19. fxe5 {[%clk 0:01:47]}  Bxg2+ {[%clk 0:01:30]} 20. Kxg2 {[%clk 0:01:48]}  Qc6+ {[%clk 0:01:27]} 21. Kh3 {[%clk 0:01:36]}  Qxa4 {[%clk 0:01:26]} 22. Bxa7 {[%clk 0:01:32]}  Rxa7 {[%clk 0:01:22]} 23. Qd4 {[%clk 0:01:24]}  Qxd4 {[%clk 0:01:19]} 24. cxd4 {[%clk 0:01:25]}  Rc8 {[%clk 0:01:09]} 25. Rdc1 {[%clk 0:01:22]}  Nd5 {[%clk 0:01:07]} 26. Rxc8+ {[%clk 0:01:18]}  Kf7 {[%clk 0:01:00]} 27. Rb1 {[%clk 0:01:17]}  g5 {[%clk 0:00:52]} 28. Rb3 {[%clk 0:01:12]}  a5 {[%clk 0:00:49]} 29. Kg2 {[%clk 0:01:07]}  a4 {[%clk 0:00:44]} 30. Rb5 {[%clk 0:01:07]}  Ne3+ {[%clk 0:00:36]} 31. Kf3 {[%clk 0:01:03]}  Nd5 {[%clk 0:00:33]} 32. h4 {[%clk 0:01:00]}  h6 {[%clk 0:00:27]} 33. h5 {[%clk 0:00:58]}  a3 {[%clk 0:00:22]} 34. Nc3 {[%clk 0:00:56]}  Ne7 {[%clk 0:00:17]} 35. Rcc5 {[%clk 0:00:52]}  Nc6 {[%clk 0:00:14]} 36. Rxc6 {[%clk 0:00:50]}  dxc6 {[%clk 0:00:13]} 37. Rb6 {[%clk 0:00:50]}  Rd7 {[%clk 0:00:10]} 38. Ke3 {[%clk 0:00:48]}  f4+ {[%clk 0:00:07]} 39. gxf4 {[%clk 0:00:47]}  gxf4+ {[%clk 0:00:02]} 40. Kd3 {[%clk 0:00:44]}  Rd5 {[%clk 0:00:02]} 41. Nxd5 {[%clk 0:00:43]} 1-0


[Site "https://www.chess.com"]

[Event "Titled Tuesday Blitz June 28 Early 2022"]
[White "Mikhalsky, Vladimir"]
[Black "Delorme, Alban"]
[WhiteFideId "14144352"]
[BlackFideId "623636"]
[WhiteElo "2301"]
[BlackElo "2197"]
[Result "1-0"]
[Round "04"]
[TimeControl "180+1"]
[Date "2022.06.28"]
[WhiteClock "0:01:20"]
[BlackClock "0:01:38"]

1. e4 {[%clk 0:03:00]}  c5 {[%clk 0:02:48]} 2. Nf3 {[%clk 0:02:59]}  d6 {[%clk 0:02:48]} 3. d3 {[%clk 0:02:55]}  g6 {[%clk 0:02:47]} 4. g3 {[%clk 0:02:51]}  Bg7 {[%clk 0:02:48]} 5. Bg2 {[%clk 0:02:52]}  Nc6 {[%clk 0:02:49]} 6. O-O {[%clk 0:02:52]}  Bg4 {[%clk 0:02:50]} 7. h3 {[%clk 0:02:51]}  Bxf3 {[%clk 0:02:49]} 8. Qxf3 {[%clk 0:02:51]}  e6 {[%clk 0:02:44]} 9. c3 {[%clk 0:02:50]}  Nge7 {[%clk 0:02:41]} 10. Rd1 {[%clk 0:02:48]}  O-O {[%clk 0:02:41]} 11. a4 {[%clk 0:02:45]}  d5 {[%clk 0:02:40]} 12. Na3 {[%clk 0:02:43]}  a6 {[%clk 0:02:32]} 13. Qe2 {[%clk 0:02:39]}  dxe4 {[%clk 0:02:27]} 14. dxe4 {[%clk 0:02:38]}  Qc7 {[%clk 0:02:23]} 15. Bf4 {[%clk 0:02:33]}  e5 {[%clk 0:02:21]} 16. Be3 {[%clk 0:02:28]}  b6 {[%clk 0:02:21]} 17. Nc4 {[%clk 0:02:26]}  Rfd8 {[%clk 0:02:20]} 18. a5 {[%clk 0:02:19]}  b5 {[%clk 0:02:19]} 19. Nb6 {[%clk 0:02:18]}  Rab8 {[%clk 0:02:14]} 20. Bxc5 {[%clk 0:02:11]}  Nxa5 {[%clk 0:02:15]} 21. Rxd8+ {[%clk 0:02:02]}  Qxd8 {[%clk 0:02:11]} 22. Rxa5 {[%clk 0:01:55]}  Rxb6 {[%clk 0:02:09]} 23. Bxb6 {[%clk 0:01:55]}  Qxb6 {[%clk 0:02:10]} 24. Ra1 {[%clk 0:01:53]}  Nc6 {[%clk 0:02:06]} 25. Qd3 {[%clk 0:01:49]}  h5 {[%clk 0:02:05]} 26. h4 {[%clk 0:01:43]}  Kh7 {[%clk 0:02:03]} 27. Bh3 {[%clk 0:01:42]}  b4 {[%clk 0:02:02]} 28. Rxa6 {[%clk 0:01:39]}  Qc5 {[%clk 0:01:59]} 29. Ra4 {[%clk 0:01:31]}  bxc3 {[%clk 0:01:54]} 30. bxc3 {[%clk 0:01:30]}  Bh6 {[%clk 0:01:42]} 31. Rc4 {[%clk 0:01:27]}  Qb5 {[%clk 0:01:40]} 32. Qd5 {[%clk 0:01:27]}  Qb1+ {[%clk 0:01:40]} 33. Kg2 {[%clk 0:01:26]}  Na5 {[%clk 0:01:37]} 34. Qxf7+ {[%clk 0:01:23]}  Bg7 {[%clk 0:01:37]} 35. Rc7 {[%clk 0:01:20]}  Qxe4+ {[%clk 0:01:38]} 36. Kh2 {[%clk 0:01:20]} 1-0


[Site "https://www.chess.com"]

[Event "Titled Tuesday Blitz June 28 Early 2022"]
[White "Miller, Eduard"]
[Black "Magallanes, Rey Jomar"]
[WhiteFideId "24687022"]
[BlackFideId "5205948"]
[WhiteElo "2299"]
[BlackElo "2201"]
[Result "1-0"]
[Round "04"]
[TimeControl "180+1"]
[Date "2022.06.28"]
[WhiteClock "0:01:32"]
[BlackClock "0:01:26"]

1. d4 {[%clk 0:02:55]}  d5 {[%clk 0:02:59]} 2. c4 {[%clk 0:02:55]}  e6 {[%clk 0:02:58]} 3. Nc3 {[%clk 0:02:55]}  Nf6 {[%clk 0:02:58]} 4. cxd5 {[%clk 0:02:55]}  exd5 {[%clk 0:02:58]} 5. Bg5 {[%clk 0:02:55]}  Be7 {[%clk 0:02:56]} 6. e3 {[%clk 0:02:56]}  Nc6 {[%clk 0:02:55]} 7. Nf3 {[%clk 0:02:54]}  h6 {[%clk 0:02:55]} 8. Bh4 {[%clk 0:02:50]}  Bf5 {[%clk 0:02:55]} 9. Bb5 {[%clk 0:02:47]}  O-O {[%clk 0:02:50]} 10. O-O {[%clk 0:02:47]}  a6 {[%clk 0:02:49]} 11. Bxc6 {[%clk 0:02:47]}  bxc6 {[%clk 0:02:50]} 12. Na4 {[%clk 0:02:47]}  Ne4 {[%clk 0:02:48]} 13. Bxe7 {[%clk 0:02:46]}  Qxe7 {[%clk 0:02:49]} 14. Rc1 {[%clk 0:02:46]}  Qd6 {[%clk 0:02:42]} 15. Ne5 {[%clk 0:02:44]}  c5 {[%clk 0:02:42]} 16. Nxc5 {[%clk 0:02:44]}  Nxc5 {[%clk 0:02:42]} 17. Rxc5 {[%clk 0:02:44]}  Rab8 {[%clk 0:02:42]} 18. Qd2 {[%clk 0:02:35]}  f6 {[%clk 0:02:38]} 19. Nc6 {[%clk 0:02:29]}  Rb5 {[%clk 0:02:30]} 20. Rfc1 {[%clk 0:02:27]}  Rxc5 {[%clk 0:02:20]} 21. Rxc5 {[%clk 0:02:28]}  Bd7 {[%clk 0:02:17]} 22. Qc3 {[%clk 0:02:22]}  f5 {[%clk 0:02:03]} 23. Ne5 {[%clk 0:02:17]}  f4 {[%clk 0:02:03]} 24. Rxc7 {[%clk 0:02:15]}  Bb5 {[%clk 0:01:59]} 25. Rc8 {[%clk 0:02:09]}  fxe3 {[%clk 0:01:55]} 26. fxe3 {[%clk 0:02:09]}  Kh7 {[%clk 0:01:44]} 27. Rxf8 {[%clk 0:02:07]}  Qxf8 {[%clk 0:01:45]} 28. Qc2+ {[%clk 0:02:03]}  Kg8 {[%clk 0:01:38]} 29. h3 {[%clk 0:01:48]}  Qf1+ {[%clk 0:01:30]} 30. Kh2 {[%clk 0:01:48]}  Qe1 {[%clk 0:01:30]} 31. Qc8+ {[%clk 0:01:45]}  Kh7 {[%clk 0:01:30]} 32. Qf5+ {[%clk 0:01:44]}  Kg8 {[%clk 0:01:31]} 33. Qf7+ {[%clk 0:01:41]}  Kh7 {[%clk 0:01:31]} 34. Ng4 {[%clk 0:01:32]}  h5 {[%clk 0:01:26]} 35. Nf6+ {[%clk 0:01:32]}  Kh6 {[%clk 0:01:26]} 36. Qxh5# {[%clk 0:01:32]} 1-0


[Site "https://www.chess.com"]

[Event "Titled Tuesday Blitz June 28 Early 2022"]
[White "Mosutha, Thuso"]
[Black "Golubovskis, Maksims"]
[WhiteFideId "11302550"]
[BlackFideId "11608528"]
[WhiteElo "2028"]
[BlackElo "2102"]
[Result "0-1"]
[Round "04"]
[TimeControl "180+1"]
[Date "2022.06.28"]
[WhiteClock "0:01:02"]
[BlackClock "0:00:22"]

1. d4 {[%clk 0:03:00]}  Nf6 {[%clk 0:02:59]} 2. c4 {[%clk 0:03:00]}  e6 {[%clk 0:02:59]} 3. Nf3 {[%clk 0:03:00]}  d5 {[%clk 0:02:58]} 4. g3 {[%clk 0:03:00]}  dxc4 {[%clk 0:02:58]} 5. Bg2 {[%clk 0:03:00]}  Bb4+ {[%clk 0:02:59]} 6. Bd2 {[%clk 0:03:00]}  Bxd2+ {[%clk 0:02:54]} 7. Nbxd2 {[%clk 0:03:00]}  b5 {[%clk 0:02:51]} 8. a4 {[%clk 0:02:56]}  c6 {[%clk 0:02:49]} 9. axb5 {[%clk 0:02:53]}  cxb5 {[%clk 0:02:48]} 10. Ne5 {[%clk 0:02:46]}  Nd5 {[%clk 0:02:48]} 11. O-O {[%clk 0:02:36]}  O-O {[%clk 0:02:39]} 12. b3 {[%clk 0:02:34]}  c3 {[%clk 0:02:35]} 13. Ne4 {[%clk 0:02:34]}  b4 {[%clk 0:02:35]} 14. Nc5 {[%clk 0:02:27]}  f6 {[%clk 0:02:28]} 15. Nc4 {[%clk 0:02:22]}  Nc6 {[%clk 0:01:46]} 16. e4 {[%clk 0:02:11]}  Nb6 {[%clk 0:01:38]} 17. Nxb6 {[%clk 0:02:05]}  Qxb6 {[%clk 0:01:37]} 18. Nxe6 {[%clk 0:01:58]}  Bxe6 {[%clk 0:01:32]} 19. d5 {[%clk 0:01:58]}  Ne5 {[%clk 0:01:17]} 20. dxe6 {[%clk 0:01:57]}  Qxe6 {[%clk 0:01:18]} 21. f4 {[%clk 0:01:56]}  Rfd8 {[%clk 0:01:18]} 22. Qe2 {[%clk 0:01:54]}  Nd3 {[%clk 0:01:16]} 23. Rfd1 {[%clk 0:01:53]}  Qb6+ {[%clk 0:01:15]} 24. Kf1 {[%clk 0:01:51]}  Nb2 {[%clk 0:01:09]} 25. Re1 {[%clk 0:01:43]}  Rd2 {[%clk 0:01:00]} 26. Qf3 {[%clk 0:01:38]}  Rad8 {[%clk 0:01:00]} 27. e5 {[%clk 0:01:38]}  fxe5 {[%clk 0:00:47]} 28. Rxe5 {[%clk 0:01:39]}  Rd1+ {[%clk 0:00:45]} 29. Rxd1 {[%clk 0:01:28]}  Rxd1+ {[%clk 0:00:46]} 30. Ke2 {[%clk 0:01:28]}  Rd2+ {[%clk 0:00:41]} 31. Kf1 {[%clk 0:01:24]}  Qd8 {[%clk 0:00:31]} 32. Qc6 {[%clk 0:01:08]}  Rd1+ {[%clk 0:00:29]} 33. Kf2 {[%clk 0:01:09]}  Nd3+ {[%clk 0:00:27]} 34. Ke3 {[%clk 0:01:06]}  Nxe5 {[%clk 0:00:27]} 35. fxe5 {[%clk 0:01:05]}  Qd4+ {[%clk 0:00:21]} 36. Kf3 {[%clk 0:01:03]}  Rd3+ {[%clk 0:00:21]} 37. Ke2 {[%clk 0:01:02]}  Qe3+ {[%clk 0:00:21]} 38. Kf1 {[%clk 0:01:02]}  Rd1# {[%clk 0:00:22]} 0-1


[Site "https://www.chess.com"]

[Event "Titled Tuesday Blitz June 28 Early 2022"]
[White "Narayanan.S.L"]
[Black "Goltsev, Dmitry"]
[WhiteFideId "5058422"]
[BlackFideId "24176710"]
[WhiteElo "2494"]
[BlackElo "2258"]
[Result "1/2-1/2"]
[Round "04"]
[TimeControl "180+1"]
[Date "2022.06.28"]
[WhiteClock "0:01:27"]
[BlackClock "0:00:52"]

1. f4 {[%clk 0:03:00]}  d5 {[%clk 0:02:59]} 2. Nf3 {[%clk 0:03:00]}  c5 {[%clk 0:03:00]} 3. g3 {[%clk 0:03:00]}  Nc6 {[%clk 0:03:01]} 4. Bg2 {[%clk 0:03:00]}  Nf6 {[%clk 0:03:02]} 5. O-O {[%clk 0:03:01]}  g6 {[%clk 0:03:03]} 6. d3 {[%clk 0:03:01]}  Bg7 {[%clk 0:03:03]} 7. c3 {[%clk 0:03:01]}  O-O {[%clk 0:03:04]} 8. Be3 {[%clk 0:03:02]}  Ng4 {[%clk 0:03:04]} 9. Bxc5 {[%clk 0:03:01]}  b6 {[%clk 0:03:03]} 10. Bf2 {[%clk 0:03:01]}  Nxf2 {[%clk 0:03:03]} 11. Rxf2 {[%clk 0:03:02]}  e5 {[%clk 0:03:00]} 12. fxe5 {[%clk 0:03:01]}  Nxe5 {[%clk 0:02:58]} 13. Nxe5 {[%clk 0:03:02]}  Bxe5 {[%clk 0:02:54]} 14. Nd2 {[%clk 0:03:03]}  Be6 {[%clk 0:02:50]} 15. d4 {[%clk 0:03:00]}  Bg7 {[%clk 0:02:49]} 16. e4 {[%clk 0:02:59]}  dxe4 {[%clk 0:02:48]} 17. Nxe4 {[%clk 0:02:58]}  Rc8 {[%clk 0:02:45]} 18. Qd2 {[%clk 0:02:58]}  Re8 {[%clk 0:02:41]} 19. Ng5 {[%clk 0:02:56]}  Qd6 {[%clk 0:02:35]} 20. Nxe6 {[%clk 0:02:56]}  Qxe6 {[%clk 0:02:36]} 21. Raf1 {[%clk 0:02:56]}  f5 {[%clk 0:02:34]} 22. a3 {[%clk 0:02:54]}  Qe3 {[%clk 0:02:12]} 23. Qxe3 {[%clk 0:02:53]}  Rxe3 {[%clk 0:02:13]} 24. Rf3 {[%clk 0:02:51]}  Re2 {[%clk 0:02:10]} 25. R1f2 {[%clk 0:02:51]}  Rce8 {[%clk 0:02:09]} 26. Rxe2 {[%clk 0:02:50]}  Rxe2 {[%clk 0:02:10]} 27. Rf2 {[%clk 0:02:51]}  Rxf2 {[%clk 0:02:07]} 28. Kxf2 {[%clk 0:02:51]}  Bh6 {[%clk 0:02:06]} 29. Ke2 {[%clk 0:02:40]}  Bc1 {[%clk 0:02:05]} 30. b4 {[%clk 0:02:40]}  Bxa3 {[%clk 0:02:03]} 31. Kd1 {[%clk 0:02:40]}  a5 {[%clk 0:02:00]} 32. bxa5 {[%clk 0:02:40]}  bxa5 {[%clk 0:02:01]} 33. Kc2 {[%clk 0:02:41]}  Kf7 {[%clk 0:02:00]} 34. c4 {[%clk 0:02:41]}  Ke6 {[%clk 0:01:55]} 35. c5 {[%clk 0:02:40]}  g5 {[%clk 0:01:51]} 36. Kb3 {[%clk 0:02:39]}  Bc1 {[%clk 0:01:49]} 37. d5+ {[%clk 0:02:38]}  Kd7 {[%clk 0:01:49]} 38. Bf1 {[%clk 0:02:28]}  Be3 {[%clk 0:01:45]} 39. Bb5+ {[%clk 0:02:28]}  Kc8 {[%clk 0:01:41]} 40. Kc4 {[%clk 0:02:28]}  f4 {[%clk 0:01:41]} 41. gxf4 {[%clk 0:02:27]}  Bxf4 {[%clk 0:01:38]} 42. d6 {[%clk 0:02:25]}  Bxh2 {[%clk 0:01:34]} 43. Kd5 {[%clk 0:02:26]}  Bg1 {[%clk 0:01:15]} 44. c6 {[%clk 0:02:07]}  Bb6 {[%clk 0:01:10]} 45. Be2 {[%clk 0:01:52]}  a4 {[%clk 0:01:02]} 46. Kc4 {[%clk 0:01:48]}  a3 {[%clk 0:00:58]} 47. Bg4+ {[%clk 0:01:48]}  Kd8 {[%clk 0:00:55]} 48. Kb3 {[%clk 0:01:48]}  Bc7 {[%clk 0:00:52]} 49. dxc7+ {[%clk 0:01:36]}  Kxc7 {[%clk 0:00:53]} 50. Bf3 {[%clk 0:01:34]}  g4 {[%clk 0:00:52]} 51. Bxg4 {[%clk 0:01:26]}  Kxc6 {[%clk 0:00:52]} 52. Kxa3 {[%clk 0:01:26]}  h5 {[%clk 0:00:52]} 53. Bxh5 {[%clk 0:01:27]} 1/2-1/2


[Site "https://www.chess.com"]

[Event "Titled Tuesday Blitz June 28 Early 2022"]
[White "Ocelak, Jakub"]
[Black "Piliczewski, Bogusz"]
[WhiteFideId "23707933"]
[BlackFideId "1104144"]
[WhiteElo "2048"]
[BlackElo "1896"]
[Result "1-0"]
[Round "04"]
[TimeControl "180+1"]
[Date "2022.06.28"]
[WhiteClock "0:01:35"]
[BlackClock "0:00:05"]

1. e4 {[%clk 0:03:00]}  c6 {[%clk 0:02:59]} 2. Nf3 {[%clk 0:02:57]}  d5 {[%clk 0:02:59]} 3. d3 {[%clk 0:02:57]}  dxe4 {[%clk 0:02:58]} 4. dxe4 {[%clk 0:02:58]}  Qxd1+ {[%clk 0:02:58]} 5. Kxd1 {[%clk 0:02:59]}  Bg4 {[%clk 0:02:57]} 6. Be2 {[%clk 0:02:59]}  Nd7 {[%clk 0:02:51]} 7. Ne1 {[%clk 0:02:59]}  Ngf6 {[%clk 0:02:41]} 8. Bxg4 {[%clk 0:02:57]}  Nxg4 {[%clk 0:02:40]} 9. Ke2 {[%clk 0:02:54]}  e5 {[%clk 0:02:39]} 10. Nd3 {[%clk 0:02:46]}  Nc5 {[%clk 0:02:33]} 11. f3 {[%clk 0:02:38]}  Nxd3 {[%clk 0:02:30]} 12. cxd3 {[%clk 0:02:38]}  Nf6 {[%clk 0:02:27]} 13. Be3 {[%clk 0:02:39]}  Bb4 {[%clk 0:02:18]} 14. a3 {[%clk 0:02:38]}  Ba5 {[%clk 0:02:12]} 15. b4 {[%clk 0:02:38]}  Bb6 {[%clk 0:02:12]} 16. Bxb6 {[%clk 0:02:16]}  axb6 {[%clk 0:02:11]} 17. Nd2 {[%clk 0:02:16]}  b5 {[%clk 0:02:03]} 18. Nb3 {[%clk 0:02:15]}  b6 {[%clk 0:01:54]} 19. Rhc1 {[%clk 0:02:09]}  Kd7 {[%clk 0:01:54]} 20. d4 {[%clk 0:02:09]}  Rhe8 {[%clk 0:01:42]} 21. dxe5 {[%clk 0:02:00]}  Rxe5 {[%clk 0:01:41]} 22. Rc3 {[%clk 0:01:53]}  Kc7 {[%clk 0:01:03]} 23. Nd4 {[%clk 0:01:48]}  Kb7 {[%clk 0:00:30]} 24. Nxc6 {[%clk 0:01:43]}  Re6 {[%clk 0:00:19]} 25. Nd4 {[%clk 0:01:41]}  Re7 {[%clk 0:00:05]} 26. Rac1 {[%clk 0:01:35]} 1-0


[Site "https://www.chess.com"]

[Event "Titled Tuesday Blitz June 28 Early 2022"]
[White "Petrova, Irina"]
[Black "Nguyen, Quoc Hy"]
[WhiteFideId "14124122"]
[BlackFideId "12410853"]
[WhiteElo "1993"]
[BlackElo "1938"]
[Result "1-0"]
[Round "04"]
[TimeControl "180+1"]
[Date "2022.06.28"]
[WhiteClock "0:00:23"]
[BlackClock "0:00:07"]

1. e4 {[%clk 0:03:00]}  c5 {[%clk 0:02:59]} 2. Nf3 {[%clk 0:03:00]}  d6 {[%clk 0:03:00]} 3. Bb5+ {[%clk 0:02:59]}  Bd7 {[%clk 0:02:59]} 4. Bxd7+ {[%clk 0:02:59]}  Qxd7 {[%clk 0:03:00]} 5. O-O {[%clk 0:02:58]}  Nf6 {[%clk 0:02:59]} 6. Re1 {[%clk 0:02:58]}  Nc6 {[%clk 0:02:59]} 7. c3 {[%clk 0:02:58]}  e6 {[%clk 0:02:50]} 8. d4 {[%clk 0:02:58]}  Nxd4 {[%clk 0:02:48]} 9. cxd4 {[%clk 0:02:59]}  cxd4 {[%clk 0:02:47]} 10. Nxd4 {[%clk 0:02:59]}  Be7 {[%clk 0:02:47]} 11. Nc3 {[%clk 0:02:58]}  O-O {[%clk 0:02:47]} 12. Bg5 {[%clk 0:02:56]}  h6 {[%clk 0:02:47]} 13. Bxf6 {[%clk 0:02:56]}  Bxf6 {[%clk 0:02:48]} 14. Rc1 {[%clk 0:02:55]}  a6 {[%clk 0:02:47]} 15. Nf3 {[%clk 0:02:53]}  Qe7 {[%clk 0:02:44]} 16. e5 {[%clk 0:02:51]}  dxe5 {[%clk 0:02:45]} 17. Nxe5 {[%clk 0:02:52]}  Rfd8 {[%clk 0:02:45]} 18. Qf3 {[%clk 0:02:48]}  Rac8 {[%clk 0:02:46]} 19. Ng4 {[%clk 0:02:46]}  Bg5 {[%clk 0:02:44]} 20. Rcd1 {[%clk 0:02:44]}  Qb4 {[%clk 0:02:43]} 21. Qe2 {[%clk 0:02:29]}  b5 {[%clk 0:01:55]} 22. h3 {[%clk 0:02:16]}  Be7 {[%clk 0:01:42]} 23. Rxd8+ {[%clk 0:02:13]}  Rxd8 {[%clk 0:01:42]} 24. Rd1 {[%clk 0:02:14]}  Rxd1+ {[%clk 0:01:33]} 25. Nxd1 {[%clk 0:02:15]}  Bc5 {[%clk 0:01:33]} 26. Nge3 {[%clk 0:02:09]}  Bd4 {[%clk 0:01:33]} 27. a3 {[%clk 0:02:02]}  Qb3 {[%clk 0:01:19]} 28. Qc2 {[%clk 0:02:02]}  Qa2 {[%clk 0:01:19]} 29. g3 {[%clk 0:01:39]}  a5 {[%clk 0:01:06]} 30. Qd3 {[%clk 0:01:18]}  Bxb2 {[%clk 0:00:44]} 31. Nxb2 {[%clk 0:01:07]}  Qxb2 {[%clk 0:00:43]} 32. Qd8+ {[%clk 0:01:06]}  Kh7 {[%clk 0:00:43]} 33. Qxa5 {[%clk 0:01:06]}  f5 {[%clk 0:00:42]} 34. Qb4 {[%clk 0:01:03]}  Qe2 {[%clk 0:00:40]} 35. h4 {[%clk 0:00:56]}  Qd3 {[%clk 0:00:33]} 36. Kg2 {[%clk 0:00:52]}  e5 {[%clk 0:00:32]} 37. Qc5 {[%clk 0:00:46]}  f4 {[%clk 0:00:31]} 38. gxf4 {[%clk 0:00:45]}  Qe4+ {[%clk 0:00:28]} 39. Kg1 {[%clk 0:00:40]}  Qxf4 {[%clk 0:00:24]} 40. Qc2+ {[%clk 0:00:39]}  e4 {[%clk 0:00:23]} 41. Qc5 {[%clk 0:00:33]}  Qxh4 {[%clk 0:00:18]} 42. Qf5+ {[%clk 0:00:33]}  Kh8 {[%clk 0:00:17]} 43. Qxb5 {[%clk 0:00:30]}  Qd8 {[%clk 0:00:12]} 44. Qb1 {[%clk 0:00:27]}  Qd4 {[%clk 0:00:09]} 45. Qb4 {[%clk 0:00:24]}  Qa1+ {[%clk 0:00:08]} 46. Kg2 {[%clk 0:00:24]}  Qe5 {[%clk 0:00:08]} 47. Qf8+ {[%clk 0:00:23]}  Kh7 {[%clk 0:00:07]} 48. Qf5+ {[%clk 0:00:23]} 1-0


[Site "https://www.chess.com"]

[Event "Titled Tuesday Blitz June 28 Early 2022"]
[White "Pham, Tran Gia Phuc"]
[Black "Starozhilov, Leonid"]
[WhiteFideId "12415669"]
[BlackFideId "14106752"]
[WhiteElo "1789"]
[BlackElo "2414"]
[Result "1/2-1/2"]
[Round "04"]
[TimeControl "180+1"]
[Date "2022.06.28"]
[WhiteClock "0:01:03"]
[BlackClock "0:00:03"]

1. c4 {[%clk 0:03:00]}  Nf6 {[%clk 0:02:57]} 2. Nc3 {[%clk 0:03:00]}  g6 {[%clk 0:02:57]} 3. g3 {[%clk 0:03:00]}  d6 {[%clk 0:02:58]} 4. Bg2 {[%clk 0:03:01]}  Bg7 {[%clk 0:02:58]} 5. e3 {[%clk 0:03:00]}  O-O {[%clk 0:02:59]} 6. Nge2 {[%clk 0:03:01]}  c5 {[%clk 0:02:59]} 7. O-O {[%clk 0:03:01]}  Nc6 {[%clk 0:02:59]} 8. d3 {[%clk 0:03:02]}  a6 {[%clk 0:02:58]} 9. Rb1 {[%clk 0:03:02]}  Rb8 {[%clk 0:02:59]} 10. a3 {[%clk 0:03:03]}  Bd7 {[%clk 0:02:59]} 11. b4 {[%clk 0:03:03]}  cxb4 {[%clk 0:02:58]} 12. axb4 {[%clk 0:03:03]}  b5 {[%clk 0:02:58]} 13. cxb5 {[%clk 0:02:57]}  axb5 {[%clk 0:02:58]} 14. d4 {[%clk 0:02:57]}  e5 {[%clk 0:02:37]} 15. Qd3 {[%clk 0:02:48]}  Bf5 {[%clk 0:02:16]} 16. e4 {[%clk 0:02:48]}  Bg4 {[%clk 0:02:11]} 17. d5 {[%clk 0:02:46]}  Ne7 {[%clk 0:02:04]} 18. f3 {[%clk 0:02:45]}  Bd7 {[%clk 0:02:04]} 19. Be3 {[%clk 0:02:45]}  Nh5 {[%clk 0:02:01]} 20. g4 {[%clk 0:02:41]}  Nf6 {[%clk 0:01:58]} 21. h4 {[%clk 0:02:40]}  h5 {[%clk 0:01:55]} 22. g5 {[%clk 0:02:40]}  Ne8 {[%clk 0:01:55]} 23. Ra1 {[%clk 0:02:40]}  f6 {[%clk 0:01:39]} 24. Ra7 {[%clk 0:02:38]}  Nc8 {[%clk 0:01:38]} 25. Ra5 {[%clk 0:02:37]}  fxg5 {[%clk 0:01:34]} 26. Bxg5 {[%clk 0:02:36]}  Bf6 {[%clk 0:01:34]} 27. f4 {[%clk 0:02:21]}  Bxg5 {[%clk 0:01:22]} 28. fxg5 {[%clk 0:02:20]}  Rxf1+ {[%clk 0:01:22]} 29. Bxf1 {[%clk 0:02:21]}  Qb6+ {[%clk 0:01:19]} 30. Kg2 {[%clk 0:02:15]}  Nc7 {[%clk 0:01:12]} 31. Ng3 {[%clk 0:02:14]}  Na6 {[%clk 0:01:03]} 32. Qb1 {[%clk 0:02:04]}  Qd4 {[%clk 0:00:42]} 33. Rxa6 {[%clk 0:01:58]}  Qxc3 {[%clk 0:00:41]} 34. Be2 {[%clk 0:01:58]}  Nb6 {[%clk 0:00:24]} 35. Ra7 {[%clk 0:01:58]}  Rf8 {[%clk 0:00:19]} 36. Qg1 {[%clk 0:01:50]}  Bg4 {[%clk 0:00:15]} 37. Bxg4 {[%clk 0:01:10]}  hxg4 {[%clk 0:00:15]} 38. Qxb6 {[%clk 0:01:06]}  Qd2+ {[%clk 0:00:07]} 39. Kg1 {[%clk 0:01:06]}  Qd1+ {[%clk 0:00:04]} 40. Kg2 {[%clk 0:01:06]}  Qd2+ {[%clk 0:00:03]} 41. Kg1 {[%clk 0:01:04]}  Qe1+ {[%clk 0:00:03]} 42. Kg2 {[%clk 0:01:03]}  Qd2+ {[%clk 0:00:03]} 1/2-1/2


[Site "https://www.chess.com"]